Cogmind - Beta 12 X6 @@@ ROGUE MODE // 2023.01.21 @ 22:13:40 Player: Decinym Result: Self-destructed Performance ------------- Evolutions (5) 2500 Regions Visited (18) 3600 Robots Destroyed (186) 930 Value Destroyed (7534) 7534 Prototype IDs (35) 700 Alien Tech Used (1) 200 Bonus (1592) 1592 TOTAL SCORE: 17056 Bonus ------- High Alert Combat Kills 563 Follower Combat Kills 1151 Met Data Miner 300 Met Imprinter 300 Was Imprinted 300 Friendly Fire -1022 Cogmind --------- Core Integrity 310/1000 Matter 131/300 Energy 22/100 System Corruption 27% Temperature Cool (0) Movement Core (50) Location -5/Waste Parts ------- > --- POWER (2) -------- (None) > --- PROPULSION (6) --- (None) > --- UTILITY (7) ------ (None) > --- WEAPON (3) ------- (None) > --- INVENTORY (5) ---- Improved Matter Compressor (0) Long-range Terrain Scanner Peak State ------------ > --- POWER ------------ Neutrino Core Micro Fission Core > --- PROPULSION ------- Medium Treads Medium Treads Medium Treads Medium Treads Heavy Treads > --- UTILITY ---------- Advanced Heat Sink Advanced Cooling System Improved Coolant Injector High-capacity Storage Unit Huge Storage Unit Precision Energy Filter Advanced Shield Generator > --- WEAPON ----------- Improved Heavy Laser Cooled Plasma Rifle Neutron Cannon > --- INVENTORY -------- Micro Fission Core Micro Fission Core Advanced Energy Well Improved Matter Compressor Advanced Sensor Array Improved Signal Interpreter Long-range Terrain Scanner 0b10 Decoder Chip [Scout] 0b10 Decoder Chip [Scout] Improved Particle Charger Thermal Defense Suite Advanced Force Field Hacking Drone Bay Precision Shock Rifle Variable Charge Gun Disruptor Cannon Plasma Cannon Cooled Plasma Cannon Advanced Plasma Cannon Heavy Phase Cannon Proton Missile Launcher Precision Grenade Launcher Heavy Mace CR-A16's Behemoth Slayer [Rating: 106] Favorites ----------- Power Micro Nuclear Core Engine Ion Engine Power Core Micro Nuclear Core Reactor Light Quantum Reactor Propulsion Light Treads Treads Light Treads Leg Aluminum Leg Wheel Armored Wheel Flight Unit Improved Cesium-ion Thruster Utility High-capacity Storage Unit Device Improved Heat Sink Storage High-capacity Storage Unit Processor Advanced Targeting Computer Hackware System Shield Protection Layered Medium Armor Plating Weapon Gatling Laser Energy Gun Gatling Laser Energy Cannon Disruptor Cannon Ballistic Gun Assault Rifle Launcher Precision Grenade Launcher Impact Weapon Heavy Mace Piercing Weapon CR-A16's Pointy Stick Build | -11 -10 -10 -10 -9 -8 -8 -7 -7 -7 -7 -6 -6 -6 -6 -6 -5 -5 -5 ------- Run | Jun Mat Min Exi Min Mat Sto Fac Low Low Zio Pro Fac Low Low Dat Pro Fac Was Slots Evolved 10 | . . . . . 4 . 2 . . . . 2 . . . . 2 . Power 1 | . . . . . . . . . . . . 1 . . . . . . Propulsion 3 | . . . . . 1 . 1 . . . . . . . . . 1 . Utility 5 | . . . . . 3 . 1 . . . . . . . . . 1 . Weapon 1 | . . . . . . . . . . . . 1 . . . . . . Parts Attached 240 | . 3 . . 7 23 25 21 . 32 1 10 37 5 13 2 12 38 11 Power 25 | . . . . 1 . 2 2 . . . 1 4 . 2 . 3 6 4 Engine 12 | . . . . 1 . 2 . . . . 1 2 . 2 . 1 3 . Core 12 | . . . . . . . 2 . . . . 2 . . . 2 3 3 Reactor 1 | . . . . . . . . . . . . . . . . . . 1 Propulsion 63 | . . . . 3 8 10 5 . 7 . 6 9 1 3 . 1 9 1 Treads 49 | . . . . . 4 10 5 . 7 . 4 5 1 2 . 1 9 1 Leg 9 | . . . . 3 4 . . . . . . 1 . 1 . . . . Wheel 4 | . . . . . . . . . . . 2 2 . . . . . . Hover . | . . . . . . . . . . . . . . . . . . . Flight 1 | . . . . . . . . . . . . 1 . . . . . . Utility 72 | . 2 . . 1 9 4 7 . 7 1 3 11 1 7 2 6 8 3 Device 27 | . . . . 1 3 1 1 . 3 . 1 2 1 4 1 3 5 1 Storage 7 | . 1 . . . . . . . . . . 2 . . . 1 1 2 Processor 5 | . . . . . 2 . 1 . . . 1 . . 1 . . . . Hackware 1 | . . . . . 1 . . . . . . . . . . . . . Protection 32 | . 1 . . . 3 3 5 . 4 1 1 7 . 2 1 2 2 . Artifact . | . . . . . . . . . . . . . . . . . . . Weapon 80 | . 1 . . 2 6 9 7 . 18 . . 13 3 1 . 2 15 3 Energy Gun 41 | . 1 . . 1 5 7 4 . 7 . . 5 2 . . . 9 . Energy Cannon 13 | . . . . . . 1 . . 2 . . 2 1 . . 2 3 2 Ballistic Gun 6 | . . . . 1 . . . . 1 . . 4 . . . . . . Ballistic Cannon . | . . . . . . . . . . . . . . . . . . . Launcher 11 | . . . . . 1 1 1 . 4 . . 1 . 1 . . 2 . Special Weapon . | . . . . . . . . . . . . . . . . . . . Impact Weapon 7 | . . . . . . . 2 . 4 . . 1 . . . . . . Slashing Weapon . | . . . . . . . . . . . . . . . . . . . Piercing Weapon 2 | . . . . . . . . . . . . . . . . . 1 1 Special Melee Weapon . | . . . . . . . . . . . . . . . . . . . Unidentified Prototypes 18 | . . . . . 1 4 1 . 1 . . 4 . 1 . 1 4 1 Corrupted Parts 10 | . . . . . . . . . . . 2 . . 1 . 4 3 . System Corruption 49 | . . . . . . . . . . . 3 . . 3 . 20 23 . Parts Lost 56 | . . . . 2 1 1 . . 12 . 3 3 . 3 . 3 15 13 Power 8 | . . . . . . . . . . . 1 . . 1 . 1 3 2 Propulsion 17 | . . . . . 1 . . . 4 . 2 1 . 2 . . 4 3 Utility 14 | . . . . . . . . . 4 . . . . . . 1 6 3 Weapon 17 | . . . . 2 . 1 . . 4 . . 2 . . . 1 2 5 Highest Loss Streak 8 | . . . . 2 1 1 . . 6 . 2 2 . 1 . 1 8 8 To Critical Strikes 2 | . . . . . . . . . . . . . . . . . . 2 Average Slot Usage (%) 96 | . 91 100 100 99 96 98 95 100 98 100 99 97 99 96 100 99 78 65 Engine 4 | . 14 14 14 14 9 9 3 . . . 1 6 . 5 6 5 4 . Core 4 | . . . . . . . 3 7 7 7 5 5 12 6 6 6 4 7 Treads 22 | . . . . . 10 26 29 30 29 35 27 20 27 27 31 31 18 15 Leg 5 | . 28 28 28 28 16 . . . . . . 1 3 . . . . . Device 9 | . . . . 9 8 9 8 7 11 11 7 6 8 13 10 12 17 19 Storage 8 | . 14 14 14 14 9 9 7 7 7 7 7 6 6 6 6 6 10 8 Processor 9 | . . . . . 8 9 8 15 14 14 14 12 9 4 6 6 1 . Hackware 1 | . . . . . 8 9 3 . . . . . . . . . . . Protection 9 | . 6 14 14 4 7 8 10 15 9 9 13 11 12 12 13 12 4 . Energy Gun 11 | . 14 14 14 13 15 17 13 15 5 14 14 10 11 12 12 9 8 7 Ballistic Gun 2 | . 14 14 14 14 2 . . . . . . 5 3 . . . . . Launcher 1 | . . . . . . . . . 3 . . . . 4 6 3 1 . Impact Weapon 1 | . . . . . . . . . 4 . . . . . . . . . Naked Turns . | . . . . . . . . . . . . . . . . . . . Heaviest Build 188 | 14 51 51 51 51 59 61 76 65 68 63 72 132 90 94 93 108 188 185 Greatest Support 210 | 20 20 20 20 26 60 60 83 83 108 108 100 120 120 128 123 125 210 154 Greatest Overweight (x) 5 | . 2 2 2 2 1 1 . . 1 . 2 5 . . . . 1 1 Average Overweight (x) . | . . 2 2 1 . . . . . . 1 1 . . . . . . Largest Inventory Capacity 25 | . 20 20 20 20 20 20 20 20 20 20 20 25 20 20 20 20 25 25 Average Capacity 20 | . 15 20 20 20 20 20 20 20 20 20 20 20 20 20 20 20 24 24 Most Carried 24 | . 8 13 16 20 20 20 20 20 20 20 20 22 20 20 20 20 24 24 Average Carried 18 | . 6 10 15 17 19 19 19 20 15 19 19 19 19 19 20 19 20 15 Final Capacity 25 | 8 20 20 20 20 20 20 20 20 20 20 20 20 20 20 20 20 25 5 Final Carried 24 | 6 7 13 16 20 20 20 20 20 16 20 20 20 20 20 20 20 24 2 Class Distribution -------------------- 51% | Scavenger-Mutant 31% | Mutant 9% | Scavenger-Tank 3% | Commander-Mutant Dominant Class ---------------- Mutant | -10/Materials Mutant | -10/Mines Mutant | -10/Exiles Mutant | -9/Mines Scavenger-Mutant | -8/Materials Scavenger-Mutant | -8/Storage Scavenger-Mutant | -7/Factory Mutant | -7/Lower Caves Scavenger-Mutant | -7/Lower Caves Scavenger-Mutant | -7/Zion Scavenger-Mutant | -6/Proximity Caves Scavenger-Tank | -6/Factory Scavenger-Tank | -6/Lower Caves Scavenger-Mutant | -6/Lower Caves Scavenger-Mutant | -6/Data Miner Scavenger-Mutant | -5/Proximity Caves Tank | -5/Factory Mutant | -5/Waste Resources | -11 -10 -10 -10 -9 -8 -8 -7 -7 -7 -7 -6 -6 -6 -6 -6 -5 -5 -5 ----------- Run | Jun Mat Min Exi Min Mat Sto Fac Low Low Zio Pro Fac Low Low Dat Pro Fac Was Matter Collected 4192 | 200 63 12 . 149 227 371 213 204 834 45 112 400 286 230 . 252 594 . Remotely . | . . . . . . . . . . . . . . . . . . . Salvage Created 9702 | . 186 68 . 123 634 1369 475 169 805 . 279 941 375 368 . 633 2416 861 Parts 372 | . 6 7 . 4 37 68 17 13 31 . 9 28 10 7 . 27 96 12 Haulers Intercepted 12 | . . . . . 2 3 2 . . . . 2 . 1 . . 2 . Recyclers Shooed 5 | . . . . . . 1 . . . . . . . . . . 4 . Parts Field Recycled . | . . . . . . . . . . . . . . . . . . . Retrieved Matter . | . . . . . . . . . . . . . . . . . . . Parts Self-Destructed 76 | . . . . . . . . 13 21 . 20 . 3 4 . 15 . . Prevented 29 | . . . . . . . . . 6 . 16 . . 3 . 4 . . Kills | -11 -10 -10 -10 -9 -8 -8 -7 -7 -7 -7 -6 -6 -6 -6 -6 -5 -5 -5 ------- Run | Jun Mat Min Exi Min Mat Sto Fac Low Low Zio Pro Fac Low Low Dat Pro Fac Was Combat Hostiles Destroyed 144 | . 4 2 . 6 9 22 8 4 15 . 4 12 4 7 . 12 32 3 Melee 1 | . . . . . . . . . . . . . . . . . . 1 Guns 88 | . 4 2 . 6 7 21 7 4 9 . 2 10 4 1 . 4 5 2 Cannons 10 | . . . . . . . . . . . . . . . . 1 9 . AOE 30 | . . . . . . . . . 5 . . . . 6 . 6 13 . Classes Destroyed 21 | . 1 . . 2 5 4 1 1 4 . . . . . . . 2 1 Worker 10 | . . . . . . 3 2 . . . . 2 . . . . 3 . Builder 6 | . . . . . . 2 . . . . . . . . . . 4 . Tunneler 3 | . . . . . 2 . . . . . . . . . . . 1 . Hauler 12 | . . . . . 2 3 2 . . . . 2 . 1 . . 2 . Recycler 5 | . . . . . . 1 . . . . . . . . . . 4 . Mechanic 1 | . . . . . . . . . . . . . . . . . 1 . Operator 1 | . . . . . . . . . . . . . . . . . 1 . Watcher 6 | . . . . . 1 1 . . . . . 2 . . . . 2 . Swarmer 16 | . . . . . . . . 3 . . . . 3 2 . 5 3 . Grunt 62 | . 4 2 . . 7 11 4 . 6 . 1 4 . 5 . 2 16 . Brawler 5 | . . . . . 1 . 1 . 2 . 1 . . . . . . . Duelist 5 | . . . . 1 1 . . . 3 . . . . . . . . . Protector 1 | . . . . . . . . . 1 . . . . . . . . . Sentry 21 | . . . . . 1 10 1 . 2 . 1 3 . . . 1 2 . Hunter 10 | . . . . . . 1 1 . . . . 3 1 . . . 4 . Programmer 10 | . . . . . . . 1 1 . . . 2 . . . . 6 . Behemoth 3 | . . . . . . . . . 1 . 1 . . . . . 1 . Compactor 3 | . . . . . . . . . . . . . . . . . . 3 Decomposer 1 | . . . . . . . . . 1 . . . . . . . . . Samaritan 8 | . . . . . . . . . 1 . . . 5 . . 2 . . Assembled 5 | . . . . 5 . . . . . . . . . . . . . . Savage 1 | . . . . . . . . 1 . . . . . . . . . . Butcher 3 | . . . . . . . . . . . . . . . . 3 . . Mutant 2 | . . . . . . . . . 1 . . . . . . 1 . . Best Kill Streak 18 | . 2 2 . 2 6 7 6 3 10 . 2 4 3 4 . 6 18 1 Combat Bots Only 10 | . 2 2 . 2 4 5 4 3 10 . 2 3 3 4 . 6 8 1 Max Kills in Single Turn 3 | . 1 1 . 1 3 2 2 1 1 . 1 1 1 1 . 2 2 1 Gunslinging . | . . . . . . . . . . . . . . . . . . . Exploded 2 | . . . . . . . . . 1 . . . . 1 . 2 2 . Melee 1 | . . . . . . . . . . . . . . . . . . 1 Uniques/NPCs Destroyed . | . . . . . . . . . . . . . . . . . . . Combat | -11 -10 -10 -10 -9 -8 -8 -7 -7 -7 -7 -6 -6 -6 -6 -6 -5 -5 -5 -------- Run | Jun Mat Min Exi Min Mat Sto Fac Low Low Zio Pro Fac Low Low Dat Pro Fac Was Damage Taken 13667 | . 138 69 . 318 418 419 525 80 2928 . 495 1298 298 425 . 627 5042 587 Core 1313 | . 10 30 . 98 58 80 20 . 195 . 18 83 . . . 31 354 336 Absorbed by Shields 383 | . . . . . . . . . . . . . . . . . 347 36 Reduced by Siege Mode 233 | . . . . . . . . . . . . . . . . . 222 11 Redirected to Shielding 77 | . . . . . 77 . . . . . . . . . . . . . Regen/Repaired (Parts) 484 | . . . . . . 131 68 . . . . 285 . . . . . . Core Remaining (%) 74 | 100 . . . 44 . 74 . . . . 66 . . . . 86 . . Volleys Fired 492 | . 11 4 . 27 33 42 22 6 81 . 16 48 34 15 . 38 99 16 Largest 3 | . 2 2 . 2 2 2 2 2 2 . 2 3 3 3 . 3 3 3 Hottest 231 | . 85 85 . 85 160 160 160 160 160 . 122 202 211 211 . 227 231 227 Shots Fired 995 | . 22 8 . 48 60 85 43 13 137 1 32 126 66 23 . 80 212 39 Gun 825 | . 22 8 . 48 58 85 43 13 105 1 32 124 61 15 . 62 125 23 Cannon 107 | . . . . . . . . . 7 . . . 5 1 . 12 66 16 Launcher 63 | . . . . . 2 . . . 25 . . 2 . 7 . 6 21 . Special . | . . . . . . . . . . . . . . . . . . . Kinetic 119 | . 11 4 . 29 9 . . . 22 . . 33 11 . . . . . Thermal 648 | . 4 4 . 19 49 85 43 13 83 1 32 91 40 . . . 145 39 Explosive 63 | . . . . . 2 . . . 25 . . 2 . 7 . 6 21 . Electromagnetic 165 | . 7 . . . . . . . 7 . . . 15 16 . 74 46 . Robot Hit Streak 43 | . 8 6 . 7 9 36 18 12 43 . 30 24 23 7 . 9 36 26 Robot Miss Streak 5 | . 1 1 . 4 4 5 3 3 2 . 1 2 4 1 . 2 5 2 Penetration Max . | . . . . . . . . . . . . . . . . . . . Secondary Targets 4 | . . 1 . . 1 . 1 . . . . 1 . . . . . . Max Gunslinging Chain 1 | . . 1 . . 1 . 1 . . . . 1 . . . . . . Shots Hit Robots 788 | . 17 6 . 26 50 80 42 11 104 . 27 103 55 13 . 57 159 38 Core Hits 497 | . 9 5 . 13 35 74 28 13 54 . 11 51 22 17 . 40 115 10 Critical Kills 1 | . . . . . . . . . . . . . . . . . 1 . Critical Parts Destroyed . | . . . . . . . . . . . . . . . . . . . Critical Strikes 21 | . . 1 . . . . . . 3 . 3 5 1 . . 1 7 . Burn 18 | . . 1 . . . . . . 3 . 3 5 1 . . . 5 . Meltdown 1 | . . . . . . . . . . . . . . . . . 1 . Corrupt 1 | . . . . . . . . . . . . . . . . 1 . . Impale 1 | . . . . . . . . . . . . . . . . . 1 . Melee Attacks 265 | . . . . . . . 3 . 237 . . 6 . . . . 14 5 Impact 246 | . . . . . . . 3 . 237 . . 6 . . . . . . Slashing . | . . . . . . . . . . . . . . . . . . . Piercing 19 | . . . . . . . . . . . . . . . . . 14 5 Sneak Attacks 1 | . . . . . . . . . 1 . . . . . . . . . Combat Hostiles . | . . . . . . . . . . . . . . . . . . . Follow-up Attacks . | . . . . . . . . . . . . . . . . . . . Damage Inflicted 21846 | . 228 94 . 368 983 1812 1021 288 2459 . 518 2248 989 950 . 1611 6957 1320 Guns 13383 | . 228 85 . 361 962 1784 1021 288 1735 . 518 1977 916 154 . 562 2048 744 Cannons 2553 | . . . . . . . . . 113 . . . 73 . . 158 1724 485 Explosions 5425 | . . . . . . . . . 565 . . 239 . 796 . 891 2934 . Melee 388 | . . . . . . . . . 46 . . . . . . . 251 91 Ramming 97 | . . 9 . 7 21 28 . . . . . 32 . . . . . . Kinetic 1317 | . 104 37 . 212 75 . . . 292 . . 456 141 . . . . . Thermal 13058 | . 57 48 . 149 887 1784 1021 288 1443 . 518 1521 647 29 . 36 3401 1229 Explosive 4424 | . . . . . . . . . 565 . . 239 . 767 . 855 1998 . Electromagnetic 2562 | . 67 . . . . . . . 113 . . . 201 154 . 720 1307 . Impact 46 | . . . . . . . . . 46 . . . . . . . . . Slashing . | . . . . . . . . . . . . . . . . . . . Piercing 342 | . . . . . . . . . . . . . . . . . 251 91 Highest Corruption 27 | . . . . . . 7 4 4 4 4 3 7 7 10 . 20 27 27 Average Corruption 6 | . . . . . . 6 2 4 4 4 2 2 7 7 . 18 9 27 Corruption Purged 10 | . . . . . . . . . . . . . . 10 . . . . Corruption Blocked . | . . . . . . . . . . . . . . . . . . . Effects 283 | . . . . . . 46 13 22 87 8 . 6 22 11 . 33 20 15 Message Errors 78 | . . . . . . 18 8 6 15 6 . 3 4 5 . 5 7 1 Matter Fused 66 | . . . . . . 10 . 1 26 . . 1 11 1 . 9 . 7 Heat Flow Errors 33 | . . . . . . 3 1 5 10 1 . 1 . 2 . 5 4 1 Energy Discharges 30 | . . . . . . 6 1 4 12 . . . 1 2 . 1 1 2 Parts Rejected 2 | . . . . . . . . . . . . . . . . . 2 . Data Loss (minor) 36 | . . . . . . 6 1 3 15 . . . 4 1 . 5 1 . Data Loss (major) 10 | . . . . . . . 1 2 2 . . . 1 . . 3 . 1 Misfires 14 | . . . . . . 1 . 1 5 1 . . 1 . . 3 1 1 Alerts 7 | . . . . . . 2 . . 1 . . 1 . . . 2 1 . Weapon Failures 7 | . . . . . . . 1 . 1 . . . . . . . 3 2 Overload Shots 9 | . . . . . . . . . . . . . . . . . . 9 Effects 1 | . . . . . . . . . . . . . . . . . . 1 Energy Bleed 1 | . . . . . . . . . . . . . . . . . . 1 Overflow Damage 206 | . . . . . . . . . 55 . . . 12 42 . 3 94 . Projectiles 84 | . . . . . . . . . . . . . 12 . . . 72 . Explosions 91 | . . . . . . . . . 24 . . . . 42 . 3 22 . Melee 31 | . . . . . . . . . 31 . . . . . . . . . Knockbacks 1 | . . . . . 1 . . . . . . . . . . . . . Impact 1 | . . . . . 1 . . . . . . . . . . . . . Kinetic . | . . . . . . . . . . . . . . . . . . . Secondary . | . . . . . . . . . . . . . . . . . . . Self-Inflicted Damage 271 | . . . . . . . . . 53 . . . . 71 . 147 . . Shots 8 | . . . . . . . . . 2 . . . . 2 . 4 . . Rammed 10 | . . . . . 2 5 . . . . . 3 . . . . . . Targets Rammed 16 | . . 3 . 3 2 5 . . . . . 3 . . . . . . Kicked 6 | . . 3 . 3 . . . . . . . . . . . . . . Crushed . | . . . . . . . . . . . . . . . . . . . Highest Temperature 442 | . 123 129 . 168 191 207 386 195 232 88 126 442 318 210 . 124 141 195 Average Temperature 74 | . 48 68 . 71 64 65 119 67 52 57 52 92 138 65 . 53 40 82 Received Heat Transfer 3150 | . 81 42 . . 234 234 147 . 681 . 132 217 . 139 . 153 1090 . Effects 10 | . . . . . . . 2 . 2 . . 4 2 . . . . . Shutdowns 3 | . . . . . . . . . . . . 3 . . . . . . Interference 5 | . . . . . . . . . 2 . . 1 2 . . . . . Damage (minor) 2 | . . . . . . . 2 . . . . . . . . . . . Siege Activations 3 | . . . . . . . . . . . . . . . . . 2 1 Total Turns 97 | . . . . . . . . . . . . . . . . . 74 23 Longest Duration 39 | . . . . . . . . . . . . . . . . . 39 23 Robots Corrupted 5 | . . . . . . . . . . . . . 1 . . 1 3 . Combat Hostiles 3 | . . . . . . . . . . . . . . . . 1 2 . Parts Fried 19 | . . . . . . . . . . . . . 6 . . 5 8 . Impact Corruptions 4 | . . . . . . . . . 4 . . . . . . . . . Robots Melted 12 | . . . . . 2 1 1 . 1 . 2 2 . . . . 3 . Combat Hostiles 11 | . . . . . 2 1 1 . 1 . 2 2 . . . . 2 . Parts Melted 67 | . 1 . . . 3 9 6 3 6 . 8 14 3 . . . 14 . Heat Transferred 25558 | . 148 185 . 359 2025 4025 2250 625 3349 . 1332 3678 1499 50 . . 4477 1556 Parts Sabotaged . | . . . . . . . . . . . . . . . . . . . Parts Stolen 1 | . . . . . . . . . 1 . . . . . . . . . Parts Stripped . | . . . . . . . . . . . . . . . . . . . Power Chain Reactions 5 | . . . . . . . . . . . . . . 1 . 1 3 . Missiles Intercepted . | . . . . . . . . . . . . . . . . . . . Alert | -11 -10 -10 -10 -9 -8 -8 -7 -7 -7 -7 -6 -6 -6 -6 -6 -5 -5 -5 ------- Run | Jun Mat Min Exi Min Mat Sto Fac Low Low Zio Pro Fac Low Low Dat Pro Fac Was Peak Influence 1080 | . 124 98 . 30 301 601 175 . . . . 355 . . . . 1080 375 Initial 371 | . . 48 . . 11 69 99 . . . . 120 . . . . 77 371 Average 209 | . 61 68 . 5 154 229 80 . . . . 218 . . . . 643 346 Maximum Alert Level 3 | . . . . . 1 2 . . . . . 1 . . . . 3 1 Low Security (%) 62 | . 100 100 . 100 75 38 100 . . . . 38 . . . . 19 . Level 1 28 | . . . . . 24 55 . . . . . 61 . . . . 21 100 Level 2 1 | . . . . . . 5 . . . . . . . . . . . . Level 3 8 | . . . . . . . . . . . . . . . . . 57 . Level 4 . | . . . . . . . . . . . . . . . . . . . Level 5 . | . . . . . . . . . . . . . . . . . . . High Security . | . . . . . . . . . . . . . . . . . . . Max Security . | . . . . . . . . . . . . . . . . . . . Squads Dispatched 28 | . . . . . 3 6 3 . 1 . 1 4 . . . . 10 . Investigation 4 | . . . . . . 1 . . . . . 2 . . . . 1 . Extermination 5 | . . . . . . . 2 . . . . 1 . . . . 2 . Reinforcement 6 | . . . . . . 1 1 . . . . 1 . . . . 3 . Assault 2 | . . . . . . . . . 1 . 1 . . . . . . . Garrison 11 | . . . . . 3 4 . . . . . . . . . . 4 . Intercept . | . . . . . . . . . . . . . . . . . . . Searches Triggered . | . . . . . . . . . . . . . . . . . . . Data Miner Redirects 1 | . . . . . . . . . . . . . . . . . 1 . Construction Impeded . | . . . . . . . . . . . . . . . . . . . Haulers Reinforced 4 | . . . . . . . . . . . . 1 . . . . 3 . Active Scanning Responses . | . . . . . . . . . . . . . . . . . . . Cargo Convoy Interrupts . | . . . . . . . . . . . . . . . . . . . Stealth | -11 -10 -10 -10 -9 -8 -8 -7 -7 -7 -7 -6 -6 -6 -6 -6 -5 -5 -5 --------- Run | Jun Mat Min Exi Min Mat Sto Fac Low Low Zio Pro Fac Low Low Dat Pro Fac Was Distress Signals 4 | . . . . . . 2 . . . . . . . . . . 2 . Communications Jammed . | . . . . . . . . . . . . . . . . . . . Distress Signals . | . . . . . . . . . . . . . . . . . . . Times Spotted 216 | . 5 2 . 6 19 28 9 4 19 . 22 19 4 10 . 20 45 4 Peak Tracking Total 8 | . 2 2 . 2 3 5 3 3 8 . 7 4 3 5 . 7 6 2 Tactical Retreats 8 | . . . . . 1 1 . . 2 . . . . 1 . . 3 . Traps | -11 -10 -10 -10 -9 -8 -8 -7 -7 -7 -7 -6 -6 -6 -6 -6 -5 -5 -5 ------- Run | Jun Mat Min Exi Min Mat Sto Fac Low Low Zio Pro Fac Low Low Dat Pro Fac Was Traps Triggered 11 | . . . . . . 3 3 . . . . 2 . . . . 3 . Indirectly 1 | . . . . . . . . . . . . . . . . . 1 . Trap Hack Attempts . | . . . . . . . . . . . . . . . . . . . Triggered . | . . . . . . . . . . . . . . . . . . . Disarmed . | . . . . . . . . . . . . . . . . . . . Reprogrammed . | . . . . . . . . . . . . . . . . . . . Reused . | . . . . . . . . . . . . . . . . . . . Traps Extracted . | . . . . . . . . . . . . . . . . . . . Installed . | . . . . . . . . . . . . . . . . . . . Triggered 1 | . . . . . . . . . . . . . . 1 . . . . Most Traps Carried 5 | . . 5 5 5 5 . . . . . . . . . . . . . Machines | -11 -10 -10 -10 -9 -8 -8 -7 -7 -7 -7 -6 -6 -6 -6 -6 -5 -5 -5 ---------- Run | Jun Mat Min Exi Min Mat Sto Fac Low Low Zio Pro Fac Low Low Dat Pro Fac Was Machines Disabled 25 | . . . . . . . . . . . . . . . . . 25 . Max in Single Turn 11 | . . . . . . . . . . . . . . . . . 11 . Machines Repaired . | . . . . . . . . . . . . . . . . . . . Machines Sabotaged . | . . . . . . . . . . . . . . . . . . . Overloaded Fab Kills . | . . . . . . . . . . . . . . . . . . . Hacking | -11 -10 -10 -10 -9 -8 -8 -7 -7 -7 -7 -6 -6 -6 -6 -6 -5 -5 -5 --------- Run | Jun Mat Min Exi Min Mat Sto Fac Low Low Zio Pro Fac Low Low Dat Pro Fac Was Machines Accessed 32 | . 1 . 1 . 2 14 2 1 . . . 4 1 . 4 . 2 . Terminals 16 | . 1 . . . 2 11 1 . . . . . . . . . 1 . Fabricators 2 | . . . . . . . . . . . . 2 . . . . . . Repair Stations 4 | . . . . . . 2 1 . . . . 1 . . . . . . Recycling Units . | . . . . . . . . . . . . . . . . . . . Scanalyzers 1 | . . . . . . . . . . . . 1 . . . . . . Garrison Access 2 | . . . . . . 1 . . . . . . . . . . 1 . Total Hacks 107 | . 3 . 1 . 10 44 5 1 . . . 9 1 . 31 . 2 . Successful 73 | . 2 . 1 . 5 22 3 1 . . . 6 1 . 31 . 1 . Failed 34 | . 1 . . . 5 22 2 . . . . 3 . . . . 1 . Catastrophic 9 | . . . . . 1 7 . . . . . . . . . . 1 . Database Lockouts . | . . . . . . . . . . . . . . . . . . . Manual 55 | . 2 . . . 10 21 2 . . . . 13 . . . . 7 . Terminals 47 | . 3 . . . 10 31 2 . . . . . . . . . 1 . Fabricators 4 | . . . . . . . . . . . . 4 . . . . . . Repair Stations 15 | . . . . . . 10 3 . . . . 2 . . . . . . Recycling Units . | . . . . . . . . . . . . . . . . . . . Scanalyzers 3 | . . . . . . . . . . . . 3 . . . . . . Garrison Access 4 | . . . . . . 3 . . . . . . . . . . 1 . Terminal Hacks 53 | . 2 . 1 . 4 11 1 1 . . . . 1 . 31 . 1 . Record 12 | . . . 1 . . . . . . . . . . . 11 . . . Part Schematic 12 | . . . . . . . . . . . . . . . 12 . . . Robot Schematic 5 | . . . . . . . . . . . . . . . 5 . . . Prototype ID Bank 3 | . . . . . . . . . . . . . . . 3 . . . Open Door 6 | . . . . . . 4 . 1 . . . . 1 . . . . . Open DSF 1 | . . . . . . . . . . . . . . . . . 1 . Branch Access Points 3 | . 1 . . . 1 . 1 . . . . . . . . . . . Terminal Index 1 | . . . . . . 1 . . . . . . . . . . . . Alert Level 2 | . . . . . 1 1 . . . . . . . . . . . . Unreport Threat 4 | . . . . . 1 3 . . . . . . . . . . . . Hauler Manifests 1 | . . . . . . 1 . . . . . . . . . . . . Zone Layout 3 | . 1 . . . 1 1 . . . . . . . . . . . . Fabricator Hacks 1 | . . . . . . . . . . . . 1 . . . . . . Network Status 1 | . . . . . . . . . . . . 1 . . . . . . Repair Station Hacks 12 | . . . . . . 8 2 . . . . 2 . . . . . . Scan Component 6 | . . . . . . 4 1 . . . . 1 . . . . . . Repair 6 | . . . . . . 4 1 . . . . 1 . . . . . . Recycling Unit Hacks . | . . . . . . . . . . . . . . . . . . . Scanalyzer 2 | . . . . . . . . . . . . 2 . . . . . . Insert Component 1 | . . . . . . . . . . . . 1 . . . . . . Analyze 1 | . . . . . . . . . . . . 1 . . . . . . Garrison Access Hacks . | . . . . . . . . . . . . . . . . . . . Unauthorized Hacks 5 | . . . . . 1 3 . . . . . 1 . . . . . . Terminals 4 | . . . . . 1 3 . . . . . . . . . . . . Botnet 4 | . . . . . 1 3 . . . . . . . . . . . . Fabricators 1 | . . . . . . . . . . . . 1 . . . . . . Liberate 1 | . . . . . . . . . . . . 1 . . . . . . Repair Stations . | . . . . . . . . . . . . . . . . . . . Recycling Units . | . . . . . . . . . . . . . . . . . . . Scanalyzers . | . . . . . . . . . . . . . . . . . . . Garrison Access . | . . . . . . . . . . . . . . . . . . . Data Cores Recovered . | . . . . . . . . . . . . . . . . . . . Used . | . . . . . . . . . . . . . . . . . . . Hacking Detections 20 | . . . . . 2 11 2 . . . . 4 . . . . 1 . Full Trace Events . | . . . . . . . . . . . . . . . . . . . Feedback Events . | . . . . . . . . . . . . . . . . . . . Feedback Blocked . | . . . . . . . . . . . . . . . . . . . Robot Schematics Acquired 8 | . . . . . . . . . . . . 3 . . 5 . . . Robots Built . | . . . . . . . . . . . . . . . . . . . Authchips . | . . . . . . . . . . . . . . . . . . . Time . | . . . . . . . . . . . . . . . . . . . Total Robot Build Rating . | . . . . . . . . . . . . . . . . . . . Part Schematics Acquired 23 | . . . . . . . . . . . . 11 . . 12 . . . Parts Built . | . . . . . . . . . . . . . . . . . . . Authchips . | . . . . . . . . . . . . . . . . . . . Time . | . . . . . . . . . . . . . . . . . . . Total Part Build Rating . | . . . . . . . . . . . . . . . . . . . Parts Repaired 6 | . . . . . . 4 1 . . . . 1 . . . . . . Time 196 | . . . . . . 140 44 . . . . 12 . . . . . . Parts Recycled . | . . . . . . . . . . . . . . . . . . . Recycled Matter . | . . . . . . . . . . . . . . . . . . . Retrieved Matter . | . . . . . . . . . . . . . . . . . . . Retrieved Components . | . . . . . . . . . . . . . . . . . . . Parts Scanalyzed 1 | . . . . . . . . . . . . 1 . . . . . . Part Schematics Acquired 1 | . . . . . . . . . . . . 1 . . . . . . Parts Damaged . | . . . . . . . . . . . . . . . . . . . Bothacking | -11 -10 -10 -10 -9 -8 -8 -7 -7 -7 -7 -6 -6 -6 -6 -6 -5 -5 -5 ------------ Run | Jun Mat Min Exi Min Mat Sto Fac Low Low Zio Pro Fac Low Low Dat Pro Fac Was Used RIF Installer . | . . . . . . . . . . . . . . . . . . . Robots Hacked . | . . . . . . . . . . . . . . . . . . . Non-combat . | . . . . . . . . . . . . . . . . . . . Combat . | . . . . . . . . . . . . . . . . . . . Robot Hacks Applied . | . . . . . . . . . . . . . . . . . . . Relay Couplers Released . | . . . . . . . . . . . . . . . . . . . Fabnet Peak Effective % . | . . . . . . . . . . . . . . . . . . . Robots Rewired 8 | . . . . . . . . . 2 . 2 . 1 . . 3 . . Allies Hacked . | . . . . . . . . . . . . . . . . . . . Hacks Repelled . | . . . . . . . . . . . . . . . . . . . Allies | -11 -10 -10 -10 -9 -8 -8 -7 -7 -7 -7 -6 -6 -6 -6 -6 -5 -5 -5 -------- Run | Jun Mat Min Exi Min Mat Sto Fac Low Low Zio Pro Fac Low Low Dat Pro Fac Was Total Allies 28 | . . . . 3 . 10 . . 2 4 2 1 1 . . 4 1 . Largest Group 10 | . . . . 3 3 10 4 . 2 4 6 2 1 . . 3 1 . Highest-Rated Group 210 | . . . . 40 40 173 77 . 36 148 210 74 61 . . 157 31 . Highest-Rated Ally 96 | . . . . 16 16 29 29 . 20 38 38 38 61 . . 96 31 . Zionite Dispatches 2 | . . . . . . . . . . . . 1 . . . . 1 . Thermal Resupply 1 | . . . . . . . . . . . . . . . . . 1 . Infowar Resupply 1 | . . . . . . . . . . . . 1 . . . . . . Total Orders 2 | . . . . . . . . . . . . 1 . . . . 1 . DROP 2 | . . . . . . . . . . . . 1 . . . . 1 . Ally Attacks 251 | . . . . . 61 51 14 . 3 . 64 16 . . . 42 . . Total Damage 4225 | . . . . . 570 631 206 . 63 . 1550 292 . . . 913 . . Kills 37 | . . . . . 7 8 2 . . . 12 2 . . . 6 . . Allies Corrupted 1 | . . . . . . . . . . . . . . . . . 1 . Allies Melted . | . . . . . . . . . . . . . . . . . . . Intel | -11 -10 -10 -10 -9 -8 -8 -7 -7 -7 -7 -6 -6 -6 -6 -6 -5 -5 -5 ------- Run | Jun Mat Min Exi Min Mat Sto Fac Low Low Zio Pro Fac Low Low Dat Pro Fac Was Robot Analysis Total . | . . . . . . . . . . . . . . . . . . . Derelict Logs Recovered 10 | . . . . 1 . . . 1 2 1 . . 3 1 . 1 . . Drone Launches . | . . . . . . . . . . . . . . . . . . . Drone Recoveries . | . . . . . . . . . . . . . . . . . . . Decoded 0b10 Intel 39 | . . . . . . . . . . . . 39 . . . . . . Traps 5 | . . . . . . . . . . . . 5 . . . . . . Items 27 | . . . . . . . . . . . . 27 . . . . . . Machines 3 | . . . . . . . . . . . . 3 . . . . . . Guards 3 | . . . . . . . . . . . . 3 . . . . . . Exits 1 | . . . . . . . . . . . . 1 . . . . . . Zionite Intel Received 3 | . . . . . . . . . . . . 2 . . . . 1 . Prototype Schematics 1 | . . . . . . . . . . . . 1 . . . . . . Unaware Schematics 1 | . . . . . . . . . . . . 1 . . . . . . Unaware Analyses 1 | . . . . . . . . . . . . . . . . . 1 . Exploration | -11 -10 -10 -10 -9 -8 -8 -7 -7 -7 -7 -6 -6 -6 -6 -6 -5 -5 -5 ------------- Run | Jun Mat Min Exi Min Mat Sto Fac Low Low Zio Pro Fac Low Low Dat Pro Fac Was Turns Passed 19254 | . 217 554 776 1520 794 1504 1035 761 4109 1904 595 1449 739 949 128 781 1192 247 Spaces Moved 8984 | 1 94 202 298 504 355 616 536 459 1887 1149 358 750 389 431 79 397 422 57 Core . | . . . . . . . . . . . . . . . . . . . Treads 7158 | . . . . . 155 616 536 459 1887 1149 158 423 389 431 79 397 422 57 Legs 1299 | 1 94 202 298 504 200 . . . . . . . . . . . . . Wheels 527 | . . . . . . . . . . . 200 327 . . . . . . Hover . | . . . . . . . . . . . . . . . . . . . Flight . | . . . . . . . . . . . . . . . . . . . Fastest Speed 120 | 120 120 260 260 190 160 160 160 160 160 164 120 135 158 158 159 159 157 160 Average Speed 174 | 120 184 260 260 239 176 182 160 160 167 164 139 153 158 158 159 159 179 237 Slowest Speed 260 | 120 260 260 260 260 193 240 160 160 246 164 165 238 159 159 159 159 240 240 Overloaded Moves . | . . . . . . . . . . . . . . . . . . . Propulsion Burnouts . | . . . . . . . . . . . . . . . . . . . Robots Hopped . | . . . . . . . . . . . . . . . . . . . Cave-ins Triggered . | . . . . . . . . . . . . . . . . . . . Exploration Rate (%) 52 | 2 26 38 74 93 32 92 15 57 99 90 59 27 58 56 69 64 17 24 Regions Visited 18 Branch Regions 12 Pre-discovered Areas 3 | . . 1 . . . . . . . 1 . . . . 1 . . . Known Exits Taken 6 | . 1 . . . 1 . 1 . . . . 1 1 . . 1 . . Unknown Exits Taken 11 | 1 . 1 1 1 . 1 . 1 1 1 1 . . 1 1 . . . Scrap Searched 24 | . . . . 2 . . . 6 4 1 4 . 1 3 . 3 . . Spaces Dug 422 | . . . . . 12 . 3 . 400 . . 6 . . . . 1 . Terrain Destroyed 693 | . . . . . 27 . 3 . 476 . . 15 . 57 . 63 49 3 Melee 208 | . . . . . . . 3 . 199 . . 6 . . . . . . Projectile 8 | . . . . . . . . . . . . . . . . . 5 3 AOE 477 | . . . . . 27 . . . 277 . . 9 . 57 . 63 44 . Terrain Rammed . | . . . . . . . . . . . . . . . . . . . Walls Destroyed . | . . . . . . . . . . . . . . . . . . . Machines Disabled . | . . . . . . . . . . . . . . . . . . . Actions | -11 -10 -10 -10 -9 -8 -8 -7 -7 -7 -7 -6 -6 -6 -6 -6 -5 -5 -5 --------- Run | Jun Mat Min Exi Min Mat Sto Fac Low Low Zio Pro Fac Low Low Dat Pro Fac Was Total 11148 | . 117 219 300 762 457 896 657 471 2284 1171 422 940 458 676 80 474 638 126 Wait 827 | . 5 5 . 216 6 177 53 7 20 8 6 46 12 201 . 2 29 34 Move 8967 | . 93 201 297 503 354 615 535 458 1886 1148 357 749 388 430 78 396 422 57 Hop . | . . . . . . . . . . . . . . . . . . . Pick Up 93 | . 2 6 3 3 13 6 7 . 4 9 4 11 2 5 . 6 12 . Fast Attach 126 | . 3 . . 3 13 11 6 . 9 . 8 21 4 10 . 8 24 6 Attach 57 | . . . . 1 4 5 6 . 9 1 2 8 1 1 . 3 11 5 Detach 15 | . . . . . 1 2 3 . . . 1 3 . . . . 4 1 Swap 59 | . . . . 3 6 10 9 . 15 . . 8 . 2 2 1 3 . Drop 158 | . 3 . . 3 25 23 13 . 3 5 8 29 6 12 . 10 16 2 Fire 492 | . 11 4 . 27 33 42 22 6 81 . 16 48 34 15 . 38 99 16 Melee 265 | . . . . . . . 3 . 237 . . 6 . . . . 14 5 Ram . | . . . . . . . . . . . . . . . . . . . Kick 6 | . . 3 . 3 . . . . . . . . . . . . . . Crush 10 | . . . . . 2 5 . . . . . 3 . . . . . . Escape Stasis 10 | . . . . . . . . . . . . 8 . . . . 2 . Rewire 63 | . . . . . . . . . 20 . 20 . 11 . . 10 2 . Trap . | . . . . . . . . . . . . . . . . . . . Miscellaneous . | . . . . . . . . . . . . . . . . . . . Route ------- -11/Junkyard -10/Materials (discovered 2 exits: *Min x2) -10/Mines (discovered 2 exits: [*Mat] / *Exi) -10/Exiles -9/Mines -8/Materials -8/Storage (discovered 2 exits: *Fac / [Rec]) -7/Factory (discovered 2 exits: *Low x2) -7/Lower Caves -7/Lower Caves (discovered 2 exits: *Fac / [*Zio]) -7/Zion -6/Proximity Caves -6/Factory (discovered 2 exits: Fac / *Low) -6/Lower Caves -6/Lower Caves -6/Data Miner -5/Proximity Caves -5/Factory (discovered 3 exits: *Fac x3) -5/Waste History --------- Turn | Location | Event 1 | -11/Junkyard | Discovered new exit (range 0) 1 | -11/Junkyard | Entered Materials 131 | -10/Materials | Identified exit to Mines 218 | -10/Materials | Entered Mines 269 | -10/Mines | Met a Derelict bent on vengeance 316 | -10/Mines | Build established: Mutant 325 | -10/Mines | Learned location of Storage (-8) 412 | -10/Mines | Found a hidden stash of uninstalled traps 555 | -10/Mines | Discovered new exit (range 14) 661 | -10/Mines | Received a Rocket Launcher from a helpful Derelict 756 | -10/Mines | Deemed a non-threat by the Exiles lab entrance 759 | -10/Mines | Discovered new exit (range 5) 772 | -10/Mines | Entered Exiles 772 | -10/Exiles | Found Exiles lab abandoned 1524 | -10/Exiles | Discovered new exit (range 10) 1548 | -10/Exiles | Entered Mines 1549 | -9/Mines | Assembled infested the area 1932 | -9/Mines | Core integrity fell below 50% 2161 | -9/Mines | A weapon hastily lodged in a ceiling crevice suddenly fell to the ground 2329 | -9/Mines | Learned Materials non-interactive machine intel 3028 | -9/Mines | Discovered new exit (range 9) 3054 | -9/Mines | Assisted by bots powering up and referring to "LRC-V3" 3068 | -9/Mines | Entered Materials 3068 | -8/Materials | Accompanied by 3 allies 3068 | -8/Materials | Evolved 4 slots: Propulsion x1, Utility x3 3069 | -8/Materials | Loaded intel: 37 non-interactive machine locations 3089 | -8/Materials | Build established: Scavenger-Mutant 3185 | -8/Materials | Identified exit to Storage 3379 | -8/Materials | Garrison activated, responded to threat 3862 | -8/Materials | Entered Storage 3927 | -8/Storage | Repaired Gatling Laser 3958 | -8/Storage | Repaired Lgt. Treads 4155 | -8/Storage | Discovered new exit (range 13) 4378 | -8/Storage | Discovered new exit (range 16) 4545 | -8/Storage | Garrison activated, responded to threat 4629 | -8/Storage | Assisted by bots powering up and referring to "LRC-V3" 4707 | -8/Storage | Garrison activated, responded to threat 4820 | -8/Storage | Repaired Gatling Laser 4859 | -8/Storage | Repaired Lgt. Armor Plating 4918 | -8/Storage | Build established: Commander-Mutant 5366 | -8/Storage | Entered Factory 5366 | -7/Factory | Accompanied by 4 allies 5366 | -7/Factory | Evolved 2 slots: Propulsion x1, Utility x1 5657 | -7/Factory | Identified exit to Lower Caves 5678 | -7/Factory | Build established: Scavenger-Mutant 6301 | -7/Factory | Repaired Gatling Laser 6401 | -7/Factory | Entered Lower Caves 6455 | -7/Lower Caves | Build established: Mutant 7079 | -7/Lower Caves | Discovered new exit (range 9) 7090 | -7/Lower Caves | Learned Factory garrison access intel 7162 | -7/Lower Caves | Entered another Lower Caves area 7186 | -7/Lower Caves | Spotted B-75 Beast 7471 | -7/Lower Caves | Encountered a Warlord checkpoint 7510 | -7/Lower Caves | Learned location of 1 exit from Factory 7711 | -7/Lower Caves | Learned Factory emergency access door positions 8281 | -7/Lower Caves | Attracted the attention of an 0b10 outpost 8363 | -7/Lower Caves | Lost 6 parts (3n2u1w) 8375 | -7/Lower Caves | Destroyed 10 combat bots 8616 | -7/Lower Caves | Discovered new exit (range 10) 8620 | -7/Lower Caves | Attracted the attention of an 0b10 checkpoint 8963 | -7/Lower Caves | Destroyed B-75 Beast 9276 | -7/Lower Caves | Build established: Scavenger-Mutant 10134 | -7/Lower Caves | Discovered new exit (range 7) 10878 | -7/Lower Caves | Found Alien Artifact 10878 | -7/Lower Caves | Identified Core Expander 10878 | -7/Lower Caves | Installed Core Expander, added new Propulsion slot 11271 | -7/Lower Caves | Entered Zion 11481 | -7/Zion | Discovered new exit (range 13) 11577 | -7/Zion | System corruption cleaned by Quarantine Array 12171 | -7/Zion | Received a hallucinogenic algorithm 12208 | -7/Zion | Given A8's code to call for help 12228 | -7/Zion | Learned Factory garrison access intel 12259 | -7/Zion | Given the Hacking Drone Bay 12259 | -7/Zion | Found Prototype Device 12340 | -7/Zion | Found CR-A16's Pointy Stick 12350 | -7/Zion | Learned location of Data Miner (-6) 12756 | -7/Zion | Imprinted 12758 | -7/Zion | Declared Zion's savior 13175 | -7/Zion | Entered Proximity Caves 13175 | -6/Proximity Caves | Accompanied by 4 allies 13177 | -6/Proximity Caves | Attracted the attention of an 0b10 outpost 13627 | -6/Proximity Caves | Spotted B-75 Beast 13654 | -6/Proximity Caves | Destroyed B-75 Beast 13757 | -6/Proximity Caves | Discovered new exit (range 7) 13769 | -6/Proximity Caves | Attracted the attention of an 0b10 checkpoint 13770 | -6/Proximity Caves | Entered Factory 13770 | -6/Factory | Accompanied by 2 allies 13770 | -6/Factory | Evolved 2 slots: Power x1, Weapon x1 13771 | -6/Factory | Identified exit to Factory 13773 | -6/Factory | Loaded intel: 2 garrison access locations 14369 | -6/Factory | Build established: Scavenger-Tank 14699 | -6/Factory | Zion Infowar Resupply teleported in 14868 | -6/Factory | Retrieved Zion intel report: Prototype Schematics 14890 | -6/Factory | Retrieved Zion intel report: Unaware Schematics 14904 | -6/Factory | Identified exit to Lower Caves 14967 | -6/Factory | Build established: Scavenger-Mutant 14986 | -6/Factory | Terminal network hard line cut 15063 | -6/Factory | Repaired Arm. Treads 15219 | -6/Factory | Entered Lower Caves 15259 | -6/Lower Caves | Learned location of 1 exit from Factory 15302 | -6/Lower Caves | Build established: Scavenger-Tank 15516 | -6/Lower Caves | Identified exit to Lower Caves 15529 | -6/Lower Caves | Learned 4 Factory zone layouts 15958 | -6/Lower Caves | Entered another Lower Caves area 16037 | -6/Lower Caves | System corruption reached 10% 16084 | -6/Lower Caves | Learned Factory stockpile data 16234 | -6/Lower Caves | Build established: Scavenger-Mutant 16838 | -6/Lower Caves | Discovered new exit (range 13) 16907 | -6/Lower Caves | Entered Data Miner 16907 | -6/Data Miner | Discovered new exit (range 6) 16939 | -6/Data Miner | Met Data Miner 16969 | -6/Data Miner | Learned location of Section 7 (-2) 16969 | -6/Data Miner | Acquired the access code to Warlord's prototype stash 17000 | -6/Data Miner | Received God Mode back door access code from Data Miner 17035 | -6/Data Miner | Entered Proximity Caves 17115 | -5/Proximity Caves | Escorted by Enhanced Grunt 17144 | -5/Proximity Caves | Attacked by a faux Warlord 17583 | -5/Proximity Caves | Attracted the attention of an 0b10 checkpoint 17800 | -5/Proximity Caves | Discovered exit to Factory (range 12) 17816 | -5/Proximity Caves | Entered Factory 17816 | -5/Factory | Evolved 2 slots: Propulsion x1, Utility x1 17817 | -5/Factory | Identified exit to Factory 17820 | -5/Factory | Loaded intel: 4 garrison access locations 17860 | -5/Factory | Incoming investigation squad redirected 17979 | -5/Factory | Garrison activated, responded to threat 18050 | -5/Factory | Discovered exit to Factory (range 13) 18213 | -5/Factory | Spotted B-75 Beast 18275 | -5/Factory | Revealed the true nature of CR-A16's Pointy Stick 18278 | -5/Factory | Destroyed B-75 Beast 18329 | -5/Factory | Lost 8 parts (2p1n5u) 18341 | -5/Factory | Destroyed 8 combat bots 18571 | -5/Factory | Retrieved Zion intel report: Unaware Analyses 18572 | -5/Factory | Zion Thermal Resupply teleported in 18794 | -5/Factory | System corruption reached 10% 18989 | -5/Factory | Garrison activated, responded to threat 19008 | -5/Factory | Sucked down chute 19008 | -5/Factory | Entered Waste 19079 | -5/Waste | Spotted C-40 Crusher 19106 | -5/Waste | Spotted C-40 Crusher 19113 | -5/Waste | Destroyed C-40 Crusher 19121 | -5/Waste | Spotted C-40 Crusher 19142 | -5/Waste | Crushed by Compactor (1 part destroyed, 1 dropped) 19145 | -5/Waste | Crushed by Compactor (1 part destroyed, 2 dropped) 19148 | -5/Waste | Crushed by Compactor (1 part destroyed, 2 dropped) 19151 | -5/Waste | Crushed by Compactor (1 part destroyed, 1 dropped) 19151 | -5/Waste | Destroyed C-40 Crusher 19161 | -5/Waste | Spotted C-40 Crusher 19182 | -5/Waste | Lost 5 parts (1n2u2w) 19206 | -5/Waste | Spotted C-40 Crusher 19229 | -5/Waste | Crushed by Compactor (1 part destroyed, 1 dropped) 19232 | -5/Waste | Crushed by Compactor (1 part destroyed, 1 dropped) 19235 | -5/Waste | Crushed by Compactor (1 part destroyed, 1 dropped) 19239 | -5/Waste | Destroyed C-40 Crusher 19240 | -5/Waste | Crushed by Compactor (1 part destroyed) 19241 | -5/Waste | Core integrity fell below 50% 19247 | -5/Waste | Spotted C-40 Crusher 19252 | -5/Waste | Crushed by Compactor (1 part destroyed, 1 dropped) 19255 | -5/Waste | Crushed by Compactor (1 part destroyed) 19255 | -5/Waste | Self-destructed Last Messages --------------- 19235_ Adv. Force Field crushed. 19235_ Imp. Signal Interpreter crushed. 19238_ System corrupted: Matter fused (-5). 19239_ C-40 Crusher destroyed. 19240_ Antimatter Reactor crushed. 19240_ Prc. Energy Filter crushed. 19240_ Mic. Fission Core crushed. 19248_ Dynamic Insulation System crushed. 19249_ Critical hit (Destroy). 19249_ Hvy. Treads destroyed. 19249_ Acquired Neutrino Core. 19252_ Imp. Cooling System crushed. 19252_ Antimatter Reactor crushed. 19252_ Neutrino Core crushed. 19252_ Imp. Coolant Injector crushed. 19253_ System corrupted: Matter fused (-10). 19253_ 319 Matter crushed. 19253_ Unknown Protection crushed. 19254_ Dropped Huge Storage Unit. 19255_ CR-A16's Behemoth Slayer crushed. Map ----- +----------------------------------------------------+ | ?????????????????????????????????????????????????? | | ?????????????????????????????????????????????????? | | ?????????????????????????????????????????????????? | | ?????????????????????????????????????????????????? | | ?????????????????????????????????????????????????? | | ?????????????????????????????????????????????????? | | ?????????????????????????????????????????????????? | | ?????????????????????????????????????????????????? | | ?????????????????????????????????????????????????? | | ?????????????????????????????????????????????????? | | ?????????????????????????????????????????????????? | | ?????????????????????????????????????????????????? | | ?????????????????????????????????????????????????? | | ?????????????????????????????????????????????????? | | ?????????????????????????????????????????????????? | | ?????????????????????????????????????????????????? | | ?????????????????????????????????????????????????? | | ???????????????????##########????????????????????? | | ???????????????????# #????????????????????? | | ???????????????????# ! #????????????????????? | | ???????????????????# #????????????????????? | | ???????????????????#** #????????????????????? | | ???????????????????# #????????????????????? | | ???????????????????# CC #????????????????????? | | ???????????????????# CC #????????????????????? | | ???????????????????# CC@! #????????????????????? | | ???????????????????### CC];##????????????????????? | | ???????############??# ! ##?????????????????????? | | ???????# #??# ! #??????????????????????? | | ???????# #??# ##??????????#??????????? | | ???????# #### ;####### !#??????????? | | ???????# ]]!/ ?????????? | | ???????# !!][ ?????????? | | ???????# ! ?????????? | | ???????# ?????????? | | ???????# #### ##"##### #??????????? | | ???????# #??# #?##????? #??????????? | | ???????# #??# #??????????????????????? | | ???????############??# * #??????????????????????? | | ?????????????????????# #??????????????????????? | | ????????????????????? ??????????????????????? | | ????????????????????? ?????????????????????? | | ???????????????????? ????????????????????? | | ???????????????????? ???????????????????? | | ????????????????????## ####???????????????????? | | ?????????????????????# #??????????????????????? | | ?????????????????????# #??????????????????????? | | ?????????????????????# #??????????????????????? | | ?????????????????????? ???????????????????????? | | ?????????????????????????????????????????????????? | +----------------------------------------------------+ Best States ------------- Heat Dissipation 90 Coolant Potential 80 Energy Generation 39 Energy Capacity 530 Matter Stores 300 Matter Capacity 300 Sight Range 18 Terrain Scan Range 16 Terrain Scan Density 10 ECM Strength 2 Armor Coverage 825 Resistance: TH 15 Core Shielding 20 Propulsion Shielding 66 Utility Shielding 33 Evasion (%) 55 Targeting Accuracy 8 Armor Integrity Analysis 30 Recoil Reduction 6 Energy Filtering 50 Particle Charging 20 Defensive Hacking 10 Item Schematics ----------------- Med. Reflective Plating | -6/Factory | Scanalyzed F-cell Engine | -6/Factory | Z-intel Biomechanical Wings | -6/Factory | Z-intel Prc. Grenade Launcher | -6/Factory | Z-intel Imp. Heavy Machine Gun | -6/Factory | Z-intel Cld. Plasma Cannon | -6/Factory | Z-intel Prc. Rocket Launcher | -6/Factory | Z-intel Thermal Defense Suite | -6/Factory | Z-intel Enh. Nuclear Core | -6/Factory | Z-intel Hvy. Particle Gun | -6/Factory | Z-intel Prc. Assault Rifle | -6/Factory | Z-intel Combat Drone Bay | -6/Data Miner | Free Lgt. Regenerative Plating | -6/Data Miner | Free Exp. Cesium-ion Thruster | -6/Data Miner | Free Prc. Energy Filter | -6/Data Miner | Free Kinetic Spear | -6/Data Miner | Free Field Propulsion Array | -6/Data Miner | Free Imp. Force Field | -6/Data Miner | Free HERF Cannon | -6/Data Miner | Free Disruptor Cannon | -6/Data Miner | Free Adv. Thermal Generator | -6/Data Miner | Free Particle Reactor | -6/Data Miner | Free Com. HERF Cannon | -6/Data Miner | Free Robot Schematics ------------------ A-02 Transporter | -6/Factory | Z-intel H-55 Commando | -6/Factory | Z-intel M-22 Extractor | -6/Factory | Z-intel R-10 Processor | -6/Data Miner | Free A-15 Conveyor | -6/Data Miner | Free B-48 Gladiator | -6/Data Miner | Free G-67 Veteran | -6/Data Miner | Free A-27 Freighter | -6/Data Miner | Free Fabricated ------------ Nothing Alien Tech Used ----------------- Core Expander Achievements -------------- None Challenges ------------ None Game ------ Seed AntimatterCloakingRigger Manual? 0 Play Time 01:49:26 Cumulative 442.4 hours Start 2023.01.21 @ 16:42:55 End 2023.01.21 @ 22:13:40 Sessions 3 Manual Loads 0 Difficulty Rogue Special Mode None Game No. 439 Rogue 439 Adventurer 0 Explorer 0 Win Type - Total 32 Types 18/3/4/1/2/1/3/0/0 Lore% 92 Gallery% 93 Achievement% 82 Wizard Run 0 Options --------- ASCII 0 Keyboard 0 Movement Arrows Keybinds 0 Fullscreen 2 Font 24/Smallcaps Map View 76x50 Tactical HUD 1 Map Filters NONE Filters NONE Steam 1 RUN: 60cd9a9a-4510-46d7-aeee-62ffa2d88bab